fUST/lending_fUST_20260508
["ID","MTS","AMOUNT","RATE_DAILY","PERIOD"]
[421810605,1778177459000,-500.0,0.0001178,2]
[421810578,1778177459000,-22783.55,0.0001178,2]
[421810580,1778177459000,-500.0,0.0001178,2]
[421810592,1778177459000,-1136.82,0.0001178,2]
[421810594,1778177459000,-500.0,0.0001178,2]
[421810583,1778177459000,-4601.51,0.0001178,2]
[421810593,1778177459000,-500.0,0.0001178,2]
[421810601,1778177459000,-500.0,0.0001178,2]
[421810599,1778177459000,-500.0,0.0001178,2]
[421810596,1778177459000,-500.0,0.0001178,2]
[421810598,1778177459000,-1082.03,0.0001178,2]
[421810588,1778177459000,-500.0,0.0001178,2]
[421810589,1778177459000,-500.0,0.0001178,2]
[421810597,1778177459000,-500.0,0.0001178,2]
[421810586,1778177459000,-500.0,0.0001178,2]
[421810591,1778177459000,-500.0,0.0001178,2]
[421810587,1778177459000,-500.0,0.0001178,2]
[421810585,1778177459000,-1045.99,0.0001178,2]
[421810595,1778177459000,-1223.54,0.0001178,2]
[421810584,1778177459000,-570.67250014,0.0001178,2]
[421810590,1778177459000,-1256.1,0.0001178,2]
[421810669,1778177460000,-53.31060028,0.00012054,2]
[421810666,1778177460000,-500.0,0.00010958,2]
[421810667,1778177460000,-500.0,0.00011506,2]
[421810664,1778177460000,-1484.4,0.00012054,2]
[421810663,1778177460000,-500.0,0.00012054,2]
[421810662,1778177460000,-500.0,0.00012054,2]
[421810660,1778177460000,-500.0,0.00012054,2]
[421810661,1778177460000,-500.0,0.00012054,2]
[421810665,1778177460000,-446.68939972,0.00012054,2]
[421810668,1778177460000,-500.0,0.0001178,2]
[421810677,1778177460000,-500.0,0.00012054,2]
[421810675,1778177460000,-500.0,0.00012054,2]
[421810674,1778177460000,-500.0,0.00012054,2]
[421810673,1778177460000,-500.0,0.00012054,2]
[421810670,1778177460000,-500.0,0.00012054,2]
[421810676,1778177460000,-500.0,0.00012054,2]
[421810672,1778177460000,-500.0,0.00012054,2]
[421810671,1778177460000,-500.0,0.00012054,2]
[421810678,1778177460000,-500.0,0.00012054,2]
[421810658,1778177460000,-500.0,0.00012054,2]
[421810679,1778177460000,-500.0,0.00012054,2]
[421810656,1778177460000,-385.69,0.00012054,2]
[421810639,1778177460000,-500.0,0.00012054,2]
[421810649,1778177460000,-500.0,0.00012054,2]
[421810680,1778177460000,-500.0,0.00012054,2]
[421810634,1778177460000,-155.0,0.00012053,2]
[421810636,1778177460000,-1598.0797,0.00012054,2]
[421810647,1778177460000,-53.52618782,0.00012054,2]
[421810646,1778177460000,-500.0,0.00012054,2]
[421810635,1778177460000,-200.35657671,0.00012053,2]
[421810638,1778177460000,-500.0,0.00012054,2]
[421810637,1778177460000,-500.0,0.00012054,2]
[421810640,1778177460000,-500.0,0.00012054,2]
[421810642,1778177460000,-500.0,0.00012054,2]
[421810657,1778177460000,-500.0,0.00012054,2]
[421810645,1778177460000,-500.0,0.00012054,2]
[421810641,1778177460000,-500.0,0.00012054,2]
[421810643,1778177460000,-500.0,0.00012054,2]
[421810648,1778177460000,-500.41381218,0.00012054,2]
[421810650,1778177460000,-590.79,0.00012054,2]
[421810651,1778177460000,-500.0,0.00012054,2]
[421810652,1778177460000,-500.0,0.00012054,2]
[421810655,1778177460000,-500.0,0.00012054,2]
[421810654,1778177460000,-500.0,0.00012054,2]
[421810653,1778177460000,-500.0,0.00012054,2]
[421810659,1778177460000,-500.0,0.00012054,2]
[421810644,1778177460000,-500.0,0.00012054,2]
[421810682,1778177460000,-612.43,0.00012054,2]
[421810687,1778177460000,-500.0,0.00012054,2]
[421810692,1778177460000,-564.96426724,0.00012054,2]
[421810709,1778177460000,-500.0,0.00012054,2]
[421810718,1778177460000,-500.0,0.00012054,2]
[421810717,1778177460000,-500.0,0.00012054,2]
[421810707,1778177460000,-500.0,0.00012054,2]
[421810714,1778177460000,-663.58,0.00012054,2]
[421810716,1778177460000,-500.0,0.00012054,2]
[421810712,1778177460000,-500.0,0.00012054,2]
[421810713,1778177460000,-500.0,0.00012054,2]
[421810715,1778177460000,-813.86,0.00012054,2]
[421810719,1778177460000,-500.0,0.00012054,2]
[421810721,1778177460000,-500.0,0.00012054,2]
[421810729,1778177460000,-500.0,0.00012054,2]
[421810725,1778177460000,-500.0,0.00012054,2]
[421810723,1778177460000,-500.0,0.00012054,2]
[421810730,1778177460000,-500.0,0.00012054,2]
[421810726,1778177460000,-500.0,0.00012054,2]
[421810724,1778177460000,-500.0,0.00012054,2]
[421810722,1778177460000,-563.64373571,0.00012054,2]
[421810727,1778177460000,-606.84,0.00012054,2]
[421810728,1778177460000,-500.0,0.00012054,2]
[421810681,1778177460000,-503.13,0.00012054,2]
[421810710,1778177460000,-500.0,0.00012054,2]
[421810706,1778177460000,-500.0,0.00012054,2]
[421810720,1778177460000,-500.0,0.00012054,2]
[421810711,1778177460000,-500.0,0.00012054,2]
[421810683,1778177460000,-500.0,0.00012054,2]
[421810708,1778177460000,-500.0,0.00012054,2]
[421810684,1778177460000,-500.0,0.00012054,2]
[421810688,1778177460000,-628.81,0.00012054,2]
[421810686,1778177460000,-500.0,0.00012054,2]
[421810691,1778177460000,-500.0,0.00012054,2]
[421810689,1778177460000,-500.0,0.00012054,2]
[421810690,1778177460000,-734.81,0.00012054,2]
[421810694,1778177460000,-500.0,0.00012054,2]
[421810693,1778177460000,-500.0,0.00012054,2]
[421810685,1778177460000,-500.0,0.00012054,2]
[421810705,1778177460000,-1666.38,0.00012054,2]
[421810696,1778177460000,-500.0,0.00012054,2]
[421810700,1778177460000,-500.0,0.00012054,2]
[421810698,1778177460000,-501.95320364,0.00012054,2]
[421810704,1778177460000,-501.3790859,0.00012054,2]
[421810702,1778177460000,-500.0,0.00012054,2]
[421810697,1778177460000,-500.0,0.00012054,2]
[421810699,1778177460000,-500.0,0.00012054,2]
[421810695,1778177460000,-500.0,0.00012054,2]
[421810701,1778177460000,-500.0,0.00012054,2]
[421810703,1778177460000,-500.0,0.00012054,2]
[421810768,1778177461000,-500.0,0.00012054,2]
[421810771,1778177461000,-500.0,0.00012054,2]
[421810779,1778177461000,-1778.26,0.00012054,2]
[421810767,1778177461000,-500.0,0.00012054,2]
[421810763,1778177461000,-500.0,0.00012054,2]
[421810766,1778177461000,-500.0,0.00012054,2]
[421810764,1778177461000,-500.0,0.00012054,2]
[421810758,1778177461000,-500.0,0.00012054,2]
[421810762,1778177461000,-500.0,0.00012054,2]
[421810770,1778177461000,-500.0,0.00012054,2]
[421810761,1778177461000,-2030.21,0.00012054,2]
[421810780,1778177461000,-724.1,0.00012054,2]
[421810792,1778177461000,-500.0,0.00012054,2]
[421810776,1778177461000,-731.6098,0.00012054,2]
[421810772,1778177461000,-500.0,0.00012054,2]
[421810774,1778177461000,-500.0,0.00012054,2]
[421810777,1778177461000,-500.0,0.00012054,2]
[421810775,1778177461000,-1585.5,0.00012054,2]
[421810778,1778177461000,-500.0,0.00012054,2]
[421810781,1778177461000,-500.0,0.00012054,2]
[421810784,1778177461000,-500.0,0.00012054,2]
[421810786,1778177461000,-500.0,0.00012054,2]
[421810788,1778177461000,-471.94,0.00012054,2]
[421810787,1778177461000,-4212.01,0.00012054,2]
[421810769,1778177461000,-500.0,0.00012054,2]
[421810773,1778177461000,-770.26,0.00012054,2]
[421810765,1778177461000,-500.0,0.00012054,2]
[421810735,1778177461000,-500.0,0.00012054,2]
[421810759,1778177461000,-500.0,0.00012054,2]
[421810731,1778177461000,-500.0,0.00012054,2]
[421810732,1778177461000,-742.3,0.00012054,2]
[421810738,1778177461000,-500.0,0.00012054,2]
[421810743,1778177461000,-1443.86,0.00012054,2]
[421810744,1778177461000,-500.0,0.00012054,2]
[421810793,1778177461000,-500.0,0.00012054,2]
[421810733,1778177461000,-500.0,0.00012054,2]
[421810742,1778177461000,-500.0,0.00012054,2]
[421810740,1778177461000,-500.0,0.00012054,2]
[421810737,1778177461000,-500.0,0.00012054,2]
[421810736,1778177461000,-680.95,0.00012054,2]
[421810734,1778177461000,-1580.04,0.00012054,2]
[421810741,1778177461000,-500.0,0.00012054,2]
[421810739,1778177461000,-198.91635136,0.00012054,2]
[421810745,1778177461000,-500.0,0.00012054,2]
[421810753,1778177461000,-500.0,0.00012054,2]
[421810754,1778177461000,-500.0,0.00012054,2]
[421810755,1778177461000,-536.84,0.00012054,2]
[421810749,1778177461000,-500.0,0.00012054,2]
[421810752,1778177461000,-568.45,0.00012054,2]
[421810756,1778177461000,-500.0,0.00012054,2]
[421810751,1778177461000,-500.0,0.00012054,2]
[421810750,1778177461000,-500.0,0.00012054,2]
[421810748,1778177461000,-589.16,0.00012054,2]
[421810747,1778177461000,-500.0,0.00012054,2]
[421810746,1778177461000,-500.0,0.00012054,2]
[421810757,1778177461000,-500.0,0.00012054,2]
[421810760,1778177461000,-500.0,0.00012054,2]
[421810785,1778177461000,-500.0,0.00012054,2]
[421810783,1778177461000,-2719.01,0.00012054,2]
[421810791,1778177461000,-500.0,0.00012054,2]
[421810833,1778177461000,-1376.71,0.00012054,2]
[421810823,1778177461000,-500.0,0.00012054,2]
[421810828,1778177461000,-500.0,0.00012054,2]
[421810824,1778177461000,-1679.31,0.00012054,2]
[421810821,1778177461000,-1000.0,0.00012054,2]
[421810825,1778177461000,-500.0,0.00012054,2]
[421810826,1778177461000,-391.50097069,0.00012054,2]
[421810827,1778177461000,-500.0,0.00012054,2]
[421810830,1778177461000,-3126.66,0.00012054,2]
[421810829,1778177461000,-500.0,0.00012054,2]
[421810831,1778177461000,-1296.33,0.00012054,2]
[421810834,1778177461000,-500.0,0.00012054,2]
[421810839,1778177461000,-920.45,0.00012054,2]
[421810837,1778177461000,-1116.36,0.00012054,2]
[421810845,1778177461000,-500.0,0.00012054,2]
[421810844,1778177461000,-500.0,0.00012054,2]
[421810841,1778177461000,-560.95,0.00012054,2]
[421810842,1778177461000,-500.0,0.00012054,2]
[421810838,1778177461000,-1297.57,0.00012054,2]
[421810835,1778177461000,-1172.95,0.00012054,2]
[421810843,1778177461000,-4121.91,0.00012054,2]
[421810840,1778177461000,-500.0,0.00012054,2]
[421810846,1778177461000,-500.0,0.00012054,2]
[421810848,1778177461000,-500.0,0.00012054,2]
[421810847,1778177461000,-500.0,0.00012054,2]
[421810849,1778177461000,-1726.89,0.00012054,2]
[421810782,1778177461000,-4964.05,0.00012054,2]
[421810832,1778177461000,-500.0,0.00012054,2]
[421810822,1778177461000,-500.0,0.00012054,2]
[421810836,1778177461000,-500.0,0.00012054,2]
[421810812,1778177461000,-500.0,0.00012054,2]
[421810820,1778177461000,-500.0,0.00012054,2]
[421810790,1778177461000,-2079.58,0.00012054,2]
[421810795,1778177461000,-500.0,0.00012054,2]
[421810806,1778177461000,-500.0,0.00012054,2]
[421810807,1778177461000,-667.67,0.00012054,2]
[421810805,1778177461000,-500.0,0.00012054,2]
[421810796,1778177461000,-500.0,0.00012054,2]
[421810799,1778177461000,-507.19,0.00012054,2]
[421810802,1778177461000,-1204.43,0.00012054,2]
[421810801,1778177461000,-500.0,0.00012054,2]
[421810798,1778177461000,-858.23,0.00012054,2]
[421810797,1778177461000,-500.0,0.00012054,2]
[421810800,1778177461000,-500.0,0.00012054,2]
[421810803,1778177461000,-1237.53,0.00012054,2]
[421810789,1778177461000,-500.0,0.00012054,2]
[421810817,1778177461000,-500.0,0.00012054,2]
[421810804,1778177461000,-2269.94,0.00012054,2]
[421810814,1778177461000,-500.0,0.00012054,2]
[421810818,1778177461000,-806.71,0.00012054,2]
[421810813,1778177461000,-500.0,0.00012054,2]
[421810811,1778177461000,-500.0,0.00012054,2]
[421810809,1778177461000,-500.0,0.00012054,2]
[421810816,1778177461000,-500.0,0.00012054,2]
[421810819,1778177461000,-1522.73,0.00012054,2]
[421810810,1778177461000,-1330.52,0.00012054,2]
[421810808,1778177461000,-500.0,0.00012054,2]
[421810794,1778177461000,-500.0,0.00012054,2]
[421810815,1778177461000,-500.0,0.00012054,2]
[421810887,1778177462000,-484.64759199,0.00012054,2]
[421810893,1778177462000,-500.0,0.00012054,2]
[421810902,1778177462000,-5506.18315904,0.00012075,2]
[421810891,1778177462000,-500.0,0.00012054,2]
[421810880,1778177462000,-1256.1,0.00012054,2]
[421810878,1778177462000,-500.0,0.00012054,2]
[421810884,1778177462000,-500.0,0.00012054,2]
[421810888,1778177462000,-1082.03,0.00012054,2]
[421810886,1778177462000,-500.0,0.00012054,2]
[421810882,1778177462000,-1136.82,0.00012054,2]
[421810892,1778177462000,-500.0,0.00012054,2]
[421810885,1778177462000,-1223.54,0.00012054,2]
[421810883,1778177462000,-500.0,0.00012054,2]
[421810895,1778177462000,-500.0,0.00012054,2]
[421810903,1778177462000,-2768.94580777,0.00012087,2]
[421810896,1778177462000,-500.0,0.00012054,2]
[421810894,1778177462000,-500.0,0.00012054,2]
[421810899,1778177462000,-500.0,0.00012054,2]
[421810898,1778177462000,-1226.05,0.00012054,2]
[421810897,1778177462000,-500.0,0.00012054,2]
[421810900,1778177462000,-500.0,0.00012054,2]
[421810901,1778177462000,-500.0,0.00012054,2]
[421810905,1778177462000,-357.91,0.000121,2]
[421810910,1778177462000,-823.0,0.00012293,2]
[421810909,1778177462000,-2768.94580777,0.00012261,2]
[421810908,1778177462000,-294.37464747,0.00012261,2]
[421810904,1778177462000,-5240.9584288,0.00012091,2]
[421810907,1778177462000,-160.0,0.00012254,4]
[421810906,1778177462000,-2768.94580777,0.00012174,2]
[421810881,1778177462000,-500.0,0.00012054,2]
[421810852,1778177462000,-500.0,0.00012054,2]
[421810879,1778177462000,-500.0,0.00012054,2]
[421810850,1778177462000,-1313.37,0.00012054,2]
[421810851,1778177462000,-500.0,0.00012054,2]
[421810864,1778177462000,-904.28,0.00012054,2]
[421810854,1778177462000,-500.0,0.00012054,2]
[421810853,1778177462000,-500.0,0.00012054,2]
[421810861,1778177462000,-500.0,0.00012054,2]
[421810859,1778177462000,-500.0,0.00012054,2]
[421810857,1778177462000,-500.0,0.00012054,2]
[421810858,1778177462000,-500.0,0.00012054,2]
[421810856,1778177462000,-500.0,0.00012054,2]
[421810855,1778177462000,-2336.53,0.00012054,2]
[421810860,1778177462000,-500.0,0.00012054,2]
[421810863,1778177462000,-500.0,0.00012054,2]
[421810890,1778177462000,-1991.93,0.00012054,2]
[421810862,1778177462000,-500.0,0.00012054,2]
[421810877,1778177462000,-1045.99,0.00012054,2]
[421810876,1778177462000,-4601.51,0.00012054,2]
[421810865,1778177462000,-500.0,0.00012054,2]
[421810875,1778177462000,-500.0,0.00012054,2]
[421810867,1778177462000,-500.0,0.00012054,2]
[421810873,1778177462000,-22783.55,0.00012054,2]
[421810871,1778177462000,-2336.49,0.00012054,2]
[421810870,1778177462000,-766.99,0.00012054,2]
[421810869,1778177462000,-500.0,0.00012054,2]
[421810868,1778177462000,-1724.52,0.00012054,2]
[421810874,1778177462000,-500.0,0.00012054,2]
[421810872,1778177462000,-500.0,0.00012054,2]
[421810889,1778177462000,-500.0,0.00012054,2]
[421810866,1778177462000,-880.01,0.00012054,2]
[421810912,1778177462000,-587.38525557,0.00012319,2]
[421810929,1778177462000,-1484.4,0.00012328,2]
[421810915,1778177462000,-500.0,0.00012328,2]
[421810944,1778177462000,-500.0,0.00012328,2]
[421810950,1778177462000,-500.0,0.00012328,2]
[421810948,1778177462000,-500.0,0.00012328,2]
[421810953,1778177462000,-500.0,0.00012328,2]
[421810952,1778177462000,-500.0,0.00012328,2]
[421810951,1778177462000,-500.0,0.00012328,2]
[421810949,1778177462000,-500.0,0.00012328,2]
[421810947,1778177462000,-734.81,0.00012328,2]
[421810957,1778177462000,-500.0,0.00012328,2]
[421810956,1778177462000,-1666.38,0.00012328,2]
[421810958,1778177462000,-500.0,0.00012328,2]
[421810960,1778177462000,-500.0,0.00012328,2]
[421810961,1778177462000,-500.0,0.00012328,2]
[421810945,1778177462000,-565.18,0.00012328,2]
[421810967,1778177462000,-500.0,0.00012328,2]
[421810959,1778177462000,-500.0,0.00012328,2]
[421810965,1778177462000,-813.86,0.00012328,2]
[421810964,1778177462000,-663.58,0.00012328,2]
[421810966,1778177462000,-500.0,0.00012328,2]
[421810963,1778177462000,-500.0,0.00012328,2]
[421810969,1778177462000,-500.0,0.00012328,2]
[421810968,1778177462000,-500.0,0.00012328,2]
[421810970,1778177462000,-500.0,0.00012328,2]
[421810971,1778177462000,-554.89280252,0.00012328,2]
[421810974,1778177462000,-500.0,0.00012328,2]
[421810973,1778177462000,-500.0,0.00012328,2]
[421810975,1778177462000,-500.0,0.00012328,2]
[421810911,1778177462000,-720.0,0.00012294,2]
[421810962,1778177462000,-500.0,0.00012328,2]
[421810955,1778177462000,-500.0,0.00012328,2]
[421810972,1778177462000,-500.0,0.00012328,2]
[421810942,1778177462000,-503.13,0.00012328,2]
[421810946,1778177462000,-500.0,0.00012328,2]
[421810913,1778177462000,-1598.0797,0.00012328,2]
[421810916,1778177462000,-500.0,0.00012328,2]
[421810918,1778177462000,-590.79,0.00012328,2]
[421810919,1778177462000,-500.0,0.00012328,2]
[421810924,1778177462000,-500.0,0.00012328,2]
[421810923,1778177462000,-500.0,0.00012328,2]
[421810917,1778177462000,-505.1,0.00012328,2]
[421810920,1778177462000,-500.0,0.00012328,2]
[421810922,1778177462000,-459.28,0.00012328,2]
[421810921,1778177462000,-500.0,0.00012328,2]
[421810927,1778177462000,-500.0,0.00012328,2]
[421810925,1778177462000,-500.0,0.00012328,2]
[421810926,1778177462000,-511.55325277,0.00012328,2]
[421810914,1778177462000,-500.0,0.00012328,2]
[421810930,1778177462000,-500.0,0.00012328,2]
[421810928,1778177462000,-500.0,0.00012328,2]
[421810943,1778177462000,-500.0,0.00012328,2]
[421810936,1778177462000,-500.0,0.00012328,2]
[421810937,1778177462000,-500.0,0.00012328,2]
[421810941,1778177462000,-500.0,0.00012328,2]
[421810931,1778177462000,-500.0,0.00012328,2]
[421810954,1778177462000,-500.0,0.00012328,2]
[421810935,1778177462000,-500.0,0.00012328,2]
[421810933,1778177462000,-500.0,0.00012328,2]
[421810934,1778177462000,-500.0,0.00012328,2]
[421810938,1778177462000,-500.0,0.00012328,2]
[421810940,1778177462000,-500.0,0.00012328,2]
[421810939,1778177462000,-587.4731637,0.00012328,2]
[421810932,1778177462000,-570.56,0.00012328,2]
[421811018,1778177463000,-500.0,0.00012328,2]
[421811010,1778177463000,-500.0,0.00012328,2]
[421811011,1778177463000,-500.0,0.00012328,2]
[421811017,1778177463000,-731.6098,0.00012328,2]
[421811009,1778177463000,-500.0,0.00012328,2]
[421811013,1778177463000,-500.0,0.00012328,2]
[421811014,1778177463000,-770.26,0.00012328,2]
[421811012,1778177463000,-500.0,0.00012328,2]
[421811015,1778177463000,-500.0,0.00012328,2]
[421811000,1778177463000,-500.0,0.00012328,2]
[421811008,1778177463000,-500.0,0.00012328,2]
[421811007,1778177463000,-500.0,0.00012328,2]
[421811026,1778177463000,-500.0,0.00012328,2]
[421811020,1778177463000,-1778.26,0.00012328,2]
[421811022,1778177463000,-644.00836025,0.00012328,2]
[421811021,1778177463000,-724.1,0.00012328,2]
[421811023,1778177463000,-4964.05,0.00012328,2]
[421811027,1778177463000,-500.0,0.00012328,2]
[421811025,1778177463000,-554.91,0.00012328,2]
[421811024,1778177463000,-2719.01,0.00012328,2]
[421811028,1778177463000,-4212.01,0.00012328,2]
[421811029,1778177463000,-500.0,0.00012328,2]
[421811030,1778177463000,-2079.58,0.00012328,2]
[421811032,1778177463000,-500.0,0.00012328,2]
[421811003,1778177463000,-500.0,0.00012328,2]
[421811031,1778177463000,-500.0,0.00012328,2]
[421811016,1778177463000,-1585.5,0.00012328,2]
[421811002,1778177463000,-408.00547195,0.00012328,2]
[421810990,1778177463000,-1443.86,0.00012328,2]
[421810999,1778177463000,-536.84,0.00012328,2]
[421811038,1778177463000,-858.23,0.00012328,2]
[421810978,1778177463000,-500.0,0.00012328,2]
[421810977,1778177463000,-500.0,0.00012328,2]
[421810980,1778177463000,-500.0,0.00012328,2]
[421810979,1778177463000,-500.0,0.00012328,2]
[421810976,1778177463000,-606.84,0.00012328,2]
[421810982,1778177463000,-500.0,0.00012328,2]
[421810992,1778177463000,-500.0,0.00012328,2]
[421810993,1778177463000,-500.0,0.00012328,2]
[421810983,1778177463000,-1580.04,0.00012328,2]
[421810981,1778177463000,-742.3,0.00012328,2]
[421810986,1778177463000,-511.0,0.00012328,2]
[421811001,1778177463000,-500.0,0.00012328,2]
[421810984,1778177463000,-500.0,0.00012328,2]
[421810985,1778177463000,-680.95,0.00012328,2]
[421810988,1778177463000,-500.0,0.00012328,2]
[421810994,1778177463000,-500.0,0.00012328,2]
[421810991,1778177463000,-500.0,0.00012328,2]
[421810989,1778177463000,-500.0,0.00012328,2]
[421810996,1778177463000,-500.0,0.00012328,2]
[421811005,1778177463000,-2030.21,0.00012328,2]
[421811004,1778177463000,-500.0,0.00012328,2]
[421810997,1778177463000,-500.0,0.00012328,2]
[421810995,1778177463000,-589.16,0.00012328,2]
[421811006,1778177463000,-500.0,0.00012328,2]
[421810998,1778177463000,-500.0,0.00012328,2]
[421810987,1778177463000,-500.0,0.00012328,2]
[421811036,1778177463000,-500.0,0.00012328,2]
[421811019,1778177463000,-500.0,0.00012328,2]
[421811037,1778177463000,-500.0,0.00012328,2]
[421811069,1778177463000,-1296.33,0.00012328,2]
[421811074,1778177463000,-500.0,0.00012328,2]
[421811071,1778177463000,-500.0,0.00012328,2]
[421811070,1778177463000,-500.0,0.00012328,2]
[421811067,1778177463000,-500.0,0.00012328,2]
[421811075,1778177463000,-1116.36,0.00012328,2]
[421811073,1778177463000,-1172.95,0.00012328,2]
[421811065,1778177463000,-500.0,0.00012328,2]
[421811077,1778177463000,-920.45,0.00012328,2]
[421811087,1778177463000,-500.0,0.00012328,2]
[421811088,1778177463000,-500.0,0.00012328,2]
[421811076,1778177463000,-1297.57,0.00012328,2]
[421811079,1778177463000,-560.95,0.00012328,2]
[421811078,1778177463000,-500.0,0.00012328,2]
[421811080,1778177463000,-500.0,0.00012328,2]
[421811086,1778177463000,-1313.37,0.00012328,2]
[421811081,1778177463000,-4121.91,0.00012328,2]
[421811084,1778177463000,-500.0,0.00012328,2]
[421811085,1778177463000,-1726.89,0.00012328,2]
[421811082,1778177463000,-500.0,0.00012328,2]
[421811083,1778177463000,-500.0,0.00012328,2]
[421811091,1778177463000,-2336.53,0.00012328,2]
[421811089,1778177463000,-630.06051891,0.00012328,2]
[421811090,1778177463000,-500.0,0.00012328,2]
[421811092,1778177463000,-500.0,0.00012328,2]
[421811093,1778177463000,-500.0,0.00012328,2]
[421811035,1778177463000,-500.0,0.00012328,2]
[421811068,1778177463000,-3126.66,0.00012328,2]
[421811066,1778177463000,-500.0,0.00012328,2]
[421811072,1778177463000,-1376.71,0.00012328,2]
[421811055,1778177463000,-500.0,0.00012328,2]
[421811034,1778177463000,-500.0,0.00012328,2]
[421811033,1778177463000,-500.0,0.00012328,2]
[421811039,1778177463000,-507.19,0.00012328,2]
[421811042,1778177463000,-1204.43,0.00012328,2]
[421811064,1778177463000,-500.0,0.00012328,2]
[421811041,1778177463000,-500.0,0.00012328,2]
[421811044,1778177463000,-2269.94,0.00012328,2]
[421811045,1778177463000,-500.0,0.00012328,2]
[421811049,1778177463000,-500.0,0.00012328,2]
[421811040,1778177463000,-500.0,0.00012328,2]
[421811048,1778177463000,-500.0,0.00012328,2]
[421811047,1778177463000,-667.67,0.00012328,2]
[421811046,1778177463000,-500.0,0.00012328,2]
[421811050,1778177463000,-1330.52,0.00012328,2]
[421811043,1778177463000,-1237.53,0.00012328,2]
[421811052,1778177463000,-486.89850194,0.00012328,2]
[421811094,1778177463000,-500.0,0.00012328,2]
[421811063,1778177463000,-1679.31,0.00012328,2]
[421811056,1778177463000,-500.0,0.00012328,2]
[421811053,1778177463000,-500.0,0.00012328,2]
[421811051,1778177463000,-500.0,0.00012328,2]
[421811060,1778177463000,-500.0,0.00012328,2]
[421811058,1778177463000,-806.71,0.00012328,2]
[421811057,1778177463000,-500.0,0.00012328,2]
[421811059,1778177463000,-1522.73,0.00012328,2]
[421811054,1778177463000,-500.0,0.00012328,2]
[421811062,1778177463000,-500.0,0.00012328,2]
[421811061,1778177463000,-500.0,0.00012328,2]
[421811107,1778177464000,-22783.55,0.00012328,2]
[421811113,1778177464000,-1256.1,0.00012328,2]
[421811108,1778177464000,-500.0,0.00012328,2]
[421811109,1778177464000,-4601.51,0.00012328,2]
[421811110,1778177464000,-1045.99,0.00012328,2]
[421811104,1778177464000,-500.0,0.00012328,2]
[421811102,1778177464000,-880.01,0.00012328,2]
[421811106,1778177464000,-2336.49,0.00012328,2]
[421811112,1778177464000,-379.15970537,0.00012328,2]
[421811097,1778177464000,-500.0,0.00012328,2]
[421811111,1778177464000,-500.0,0.00012328,2]
[421811103,1778177464000,-1724.52,0.00012328,2]
[421811095,1778177464000,-500.0,0.00012328,2]
[421811100,1778177464000,-500.0,0.00012328,2]
[421811096,1778177464000,-500.0,0.00012328,2]
[421811099,1778177464000,-904.28,0.00012328,2]
[421811098,1778177464000,-500.0,0.00012328,2]
[421811101,1778177464000,-500.0,0.00012328,2]